Cogmind - Beta 11.1 @@@ ROGUE MODE // 2022.07.02 @ 16:37:02 Player: HeartGrenade Result: Destroyed by H-55 Commando with Gauss Rifle Performance ------------- Evolutions (2) 1000 Regions Visited (7) 1400 Robots Destroyed (79) 395 Value Destroyed (3576) 3576 Prototype IDs (6) 120 Alien Tech Used (0) 0 Bonus (1148) 1148 TOTAL SCORE: 7639 Bonus ------- High Alert Combat Kills 413 Follower Combat Kills 35 Entered Garrisons 200 Used RIF Installer 500 Cogmind --------- Core Integrity 0/550 Matter 245/300 Energy 265/265 System Corruption 4% Temperature Cool (0) Movement Rolling (230) Ox10 Location -8/Materials Parts ------- > --- POWER (1) -------- Reinforced Ion Engine > --- PROPULSION (3) --- Light Treads Aluminum Leg Wheel > --- UTILITY (5) ------ Heat Sink Improved Heat Sink Huge Storage Unit Light Armor Plating Relay Coupler [NC] (21) > --- WEAPON (2) ------- Particle Cannon Particle Cannon > --- INVENTORY (25) --- Improved Ion Engine Light Nuclear Core Light Nuclear Core Aluminum Leg Heat Sink Small Storage Unit Improved Sensor Array Relay Coupler [Grunt] (29) Relay Coupler [Grunt] (24) Relay Coupler [Sentry] (20) Particle Gun Particle Gun Heavy Laser Particle Cannon Particle Cannon Particle Cannon Particle Cannon Light Assault Rifle Mini Grenade Launcher Mini Grenade Launcher Heavy Flail Heavy Flail Peak State ------------ > --- POWER ------------ Light Nuclear Core > --- PROPULSION ------- Aluminum Leg Aluminum Leg Armored Wheel > --- UTILITY ---------- Heat Sink Improved Heat Sink Huge Storage Unit Compact Battery Structural Scanner > --- WEAPON ----------- Advanced Beam Rifle Gauss Rifle > --- INVENTORY -------- Light Ion Engine Light Nuclear Core Light Nuclear Core Improved Heat Sink Small Storage Unit Improved Sensor Array Relay Coupler [Grunt] Relay Coupler [Sentry] Particle Gun Particle Gun Heavy Laser Particle Cannon Particle Cannon Particle Cannon Particle Cannon Particle Cannon Particle Cannon Light Assault Rifle Mini Grenade Launcher Mini Grenade Launcher Heavy Flail Heavy Flail [Rating: 29] Favorites ----------- Power Improved Ion Engine Engine Improved Ion Engine Power Core Light Nuclear Core Propulsion Light Treads Treads Light Treads Leg Aluminum Leg Wheel Armored Wheel Utility Improved Heat Sink Device Improved Heat Sink Storage Huge Storage Unit Processor Transport Network Coupler Hackware Relay Coupler [NC] Protection Light Armor Plating Weapon Particle Cannon Energy Gun Advanced Beam Rifle Energy Cannon Particle Cannon Ballistic Gun Assault Rifle Launcher Mini Grenade Launcher Build | -11 -10 -10 -10 -9 -8 -8 -8 ------- Run | Scr Mat Min Exi Min Mat Gar Mat Slots Evolved 4 | . . . . . 4 . . Power . | . . . . . . . . Propulsion 1 | . . . . . 1 . . Utility 3 | . . . . . 3 . . Weapon . | . . . . . . . . Parts Attached 75 | 6 10 2 . 1 26 28 2 Power 11 | 1 1 1 . . 3 5 . Engine 9 | 1 1 1 . . 3 3 . Core 2 | . . . . . . 2 . Reactor . | . . . . . . . . Propulsion 21 | 2 1 1 . . 9 7 1 Treads 8 | 2 1 1 . . 1 3 . Leg 9 | . . . . . 5 4 . Wheel 4 | . . . . . 3 . 1 Hover . | . . . . . . . . Flight . | . . . . . . . . Utility 20 | 1 2 . . . 8 8 1 Device 11 | . 2 . . . 3 6 . Storage 3 | 1 . . . . 1 1 . Processor 1 | . . . . . 1 . . Hackware 1 | . . . . . . . 1 Protection 4 | . . . . . 3 1 . Artifact . | . . . . . . . . Weapon 23 | 2 6 . . 1 6 8 . Energy Gun 7 | . 2 . . . 3 2 . Energy Cannon 5 | . 2 . . . 1 2 . Ballistic Gun 6 | 2 2 . . . 1 1 . Ballistic Cannon . | . . . . . . . . Launcher 5 | . . . . 1 1 3 . Special Weapon . | . . . . . . . . Impact Weapon . | . . . . . . . . Slashing Weapon . | . . . . . . . . Piercing Weapon . | . . . . . . . . Special Melee Weapon . | . . . . . . . . Unidentified Prototypes 1 | . . . . . 1 . . Parts Lost 33 | . 2 . . . 16 15 . Power 5 | . 1 . . . 2 2 . Propulsion 13 | . . . . . 8 5 . Utility 11 | . . . . . 5 6 . Weapon 4 | . 1 . . . 1 2 . Highest Loss Streak 10 | . 1 . . . 5 10 . To Critical Strikes . | . . . . . . . . Average Slot Usage (%) 94 | . 96 100 100 100 87 90 100 Engine 10 | . 13 14 14 14 8 6 9 Treads 16 | . 27 28 28 28 9 7 9 Leg 5 | . . . . . 8 10 14 Wheel 2 | . . . . . 6 4 3 Device 17 | . 11 14 14 14 17 21 24 Storage 12 | . 14 14 14 14 9 11 9 Processor 2 | . . . . . 7 1 . Protection 2 | . . . . . 2 5 9 Energy Gun 4 | . 3 . . . 13 4 . Energy Cannon 10 | . 1 28 28 16 3 8 18 Ballistic Gun 6 | . 22 . . . . 4 . Launcher 1 | . . . . 11 . . . Naked Turns . | . . . . . . . . Heaviest Build 104 | 12 19 21 21 21 98 104 104 Greatest Support 60 | 40 40 40 40 40 60 20 20 Greatest Overweight (x) 33 | . . . . . 9 33 10 Average Overweight (x) 2 | . . . . . 7 7 7 Largest Inventory Capacity 25 | 8 8 8 8 8 25 25 25 Average Capacity 17 | 6 8 8 8 8 24 25 25 Most Carried 25 | 2 8 8 8 8 20 25 22 Average Carried 13 | 1 7 7 8 8 14 20 21 Final Capacity 25 | 8 8 8 8 8 25 25 25 Final Carried 22 | 2 8 8 8 8 15 21 22 Class Distribution -------------------- 52% | Scavenger-Mutant 47% | Mutant Dominant Class ---------------- Mutant | -10/Materials Mutant | -10/Mines Mutant | -10/Exiles Mutant | -9/Mines Scavenger-Mutant | -8/Materials Scavenger-Mutant | -8/Garrison Scavenger-Mutant | -8/Materials Resources | -11 -10 -10 -10 -9 -8 -8 -8 ----------- Run | Scr Mat Min Exi Min Mat Gar Mat Matter Collected 1489 | 260 364 25 . 50 224 495 71 Remotely . | . . . . . . . . Salvage Created 3145 | . 453 59 . 105 1436 1021 71 Parts 148 | . 33 3 . 2 60 46 4 Haulers Intercepted 2 | . 1 . . . 1 . . Recyclers Shooed . | . . . . . . . . Parts Field Recycled . | . . . . . . . . Retrieved Matter . | . . . . . . . . Parts Self-Destructed . | . . . . . . . . Prevented . | . . . . . . . . Kills | -11 -10 -10 -10 -9 -8 -8 -8 ------- Run | Scr Mat Min Exi Min Mat Gar Mat Combat Hostiles Destroyed 77 | . 10 1 . 9 28 28 1 Guns 44 | . 10 . . . 20 14 . Cannons 19 | . . 1 . 5 6 6 1 AOE 14 | . . . . 4 2 8 . Classes Destroyed 11 | . 4 1 . 1 5 . . Worker 2 | . . . . . 1 . 1 Builder 1 | . . . . . 1 . . Hauler 2 | . 1 . . . 1 . . Watcher 5 | . 3 . . . 2 . . Swarmer 13 | . 3 . . . 3 7 . Grunt 42 | . 7 . . 1 18 16 . Brawler 3 | . . . . . 1 2 . Duelist 1 | . . . . . 1 . . Sentry 7 | . . 1 . . 3 3 . Hunter 3 | . . . . . 2 . 1 Assembled 8 | . . . . 8 . . . Best Kill Streak 7 | . 5 1 . 5 7 6 1 Combat Bots Only 6 | . 3 1 . 5 5 6 1 Max Kills in Single Turn 4 | . 1 1 . 2 2 4 1 Gunslinging . | . . . . . . . . Exploded 4 | . . . . 2 1 4 . Melee . | . . . . . . . . Uniques/NPCs Destroyed . | . . . . . . . . Combat | -11 -10 -10 -10 -9 -8 -8 -8 -------- Run | Scr Mat Min Exi Min Mat Gar Mat Damage Taken 4238 | . 484 28 . 190 1810 1604 122 Core 682 | . 93 . . 38 291 238 22 Absorbed by Shields 75 | . . . . . . 75 . Regen/Repaired (Parts) 105 | . 105 . . . . . . Core Remaining (%) 73 | 100 . . . 47 . . . Volleys Fired 226 | . 48 1 . 15 99 57 6 Largest 2 | . 2 2 . 2 2 2 2 Hottest 136 | . 70 136 . 136 136 136 136 Shots Fired 444 | . 96 2 . 21 198 115 12 Gun 326 | . 96 . . . 149 81 . Cannon 104 | . . 2 . 18 48 24 12 Launcher 14 | . . . . 3 1 10 . Special . | . . . . . . . . Kinetic 129 | . 81 . . . 11 37 . Thermal 301 | . 15 2 . 18 186 68 12 Explosive 14 | . . . . 3 1 10 . Electromagnetic . | . . . . . . . . Robot Hit Streak 21 | . 21 2 . 7 15 9 3 Robot Miss Streak 3 | . 3 . . 1 3 3 1 Penetration Max 1 | . . . . . . 1 . Secondary Targets 4 | . . . . . 2 2 . Max Gunslinging Chain 1 | . . . . . 1 1 . Shots Hit Robots 295 | . 66 2 . 15 137 68 7 Core Hits 158 | . 23 1 . 15 57 59 3 Critical Kills . | . . . . . . . . Critical Parts Destroyed . | . . . . . . . . Critical Strikes 18 | . 2 . . . 9 7 . Burn 18 | . 2 . . . 9 7 . Melee Attacks . | . . . . . . . . Impact . | . . . . . . . . Slashing . | . . . . . . . . Piercing . | . . . . . . . . Sneak Attacks . | . . . . . . . . Combat Hostiles . | . . . . . . . . Follow-up Attacks . | . . . . . . . . Damage Inflicted 7892 | . 858 41 . 504 2929 3393 167 Guns 4160 | . 858 . . . 2235 1067 . Cannons 1351 | . . 41 . 268 602 273 167 Explosions 2381 | . . . . 236 92 2053 . Melee . | . . . . . . . . Ramming . | . . . . . . . . Kinetic 1361 | . 675 . . . 169 517 . Thermal 4150 | . 183 41 . 268 2668 823 167 Explosive 2381 | . . . . 236 92 2053 . Electromagnetic . | . . . . . . . . Impact . | . . . . . . . . Slashing . | . . . . . . . . Piercing . | . . . . . . . . Highest Corruption 4 | . . . . . . 4 4 Average Corruption 4 | . . . . . . 4 4 Corruption Purged . | . . . . . . . . Corruption Blocked . | . . . . . . . . Effects 35 | . . . . . . 31 4 Message Errors 8 | . . . . . . 8 . Matter Fused 16 | . . . . . . 13 3 Heat Flow Errors 3 | . . . . . . 2 1 Energy Discharges 2 | . . . . . . 2 . Data Loss (minor) 3 | . . . . . . 3 . Misfires 2 | . . . . . . 2 . Alerts 1 | . . . . . . 1 . Overload Shots . | . . . . . . . . Overflow Damage 52 | . . . . 31 . 21 . Projectiles 5 | . . . . . . 5 . Explosions 47 | . . . . 31 . 16 . Melee . | . . . . . . . . Knockbacks . | . . . . . . . . Impact . | . . . . . . . . Kinetic . | . . . . . . . . Secondary . | . . . . . . . . Self-Inflicted Damage 173 | . . . . 51 . 122 . Shots 9 | . . . . 3 . 6 . Rammed . | . . . . . . . . Targets Rammed . | . . . . . . . . Kicked . | . . . . . . . . Crushed . | . . . . . . . . Highest Temperature 310 | . 114 33 . 117 240 310 175 Average Temperature 63 | . 40 16 . 40 67 84 32 Received Heat Transfer 1751 | . 177 9 . 89 756 720 . Effects 3 | . . . . . . 3 . Interference 3 | . . . . . . 3 . Siege Activations . | . . . . . . . . Robots Corrupted . | . . . . . . . . Combat Hostiles . | . . . . . . . . Parts Fried . | . . . . . . . . Impact Corruptions . | . . . . . . . . Robots Melted . | . . . . . . . . Combat Hostiles . | . . . . . . . . Parts Melted 16 | . . . . . 13 2 1 Heat Transferred 9065 | . 666 74 . 481 5550 1998 296 Parts Sabotaged . | . . . . . . . . Parts Stolen . | . . . . . . . . Parts Stripped . | . . . . . . . . Power Chain Reactions . | . . . . . . . . Missiles Intercepted . | . . . . . . . . Alert | -11 -10 -10 -10 -9 -8 -8 -8 ------- Run | Scr Mat Min Exi Min Mat Gar Mat Peak Influence 1347 | . 172 32 . 70 374 1347 717 Initial 656 | . . 12 . . . 243 656 Average 427 | . 63 31 . 42 151 924 672 Maximum Alert Level 4 | . . . . . 1 4 3 Low Security (%) 50 | 100 100 100 . 100 65 . . Level 1 11 | . . . . . 34 11 . Level 2 6 | . . . . . . 6 78 Level 3 19 | . . . . . . 50 21 Level 4 11 | . . . . . . 32 . Level 5 . | . . . . . . . . High Security . | . . . . . . . . Max Security . | . . . . . . . . Squads Dispatched 10 | . 2 . . . 8 . . Investigation 3 | . 1 . . . 2 . . Extermination . | . . . . . . . . Reinforcement 3 | . 1 . . . 2 . . Assault . | . . . . . . . . Garrison 4 | . . . . . 4 . . Intercept . | . . . . . . . . Searches Triggered . | . . . . . . . . Construction Impeded . | . . . . . . . . Haulers Reinforced . | . . . . . . . . Active Scanning Responses . | . . . . . . . . Cargo Convoy Interrupts . | . . . . . . . . Stealth | -11 -10 -10 -10 -9 -8 -8 -8 --------- Run | Scr Mat Min Exi Min Mat Gar Mat Distress Signals 4 | . 1 . . . 3 . . Communications Jammed . | . . . . . . . . Distress Signals . | . . . . . . . . Times Spotted 110 | . 16 1 . 15 42 30 6 Peak Tracking Total 8 | . 4 2 . 8 5 6 4 Tactical Retreats 5 | . . . . 2 2 1 . Traps | -11 -10 -10 -10 -9 -8 -8 -8 ------- Run | Scr Mat Min Exi Min Mat Gar Mat Traps Triggered 10 | . 1 . . . 1 8 . Indirectly . | . . . . . . . . Trap Hack Attempts . | . . . . . . . . Triggered . | . . . . . . . . Disarmed . | . . . . . . . . Reprogrammed . | . . . . . . . . Reused . | . . . . . . . . Traps Extracted . | . . . . . . . . Installed . | . . . . . . . . Triggered . | . . . . . . . . Machines | -11 -10 -10 -10 -9 -8 -8 -8 ---------- Run | Scr Mat Min Exi Min Mat Gar Mat Machines Disabled 4 | . . . . . . 4 . Max in Single Turn 1 | . . . . . . 1 . Garrison Relay 4 | . . . . . . 4 . Machines Sabotaged . | . . . . . . . . Garrisons Compromised . | . . . . . . . . Overloaded Fab Kills . | . . . . . . . . Hacking | -11 -10 -10 -10 -9 -8 -8 -8 --------- Run | Scr Mat Min Exi Min Mat Gar Mat Machines Accessed 12 | . 8 . 1 . 2 . 1 Terminals 8 | . 7 . . . . . 1 Fabricators . | . . . . . . . . Repair Stations 1 | . 1 . . . . . . Recycling Units . | . . . . . . . . Scanalyzers 1 | . . . . . 1 . . Garrison Access 1 | . . . . . 1 . . Total Hacks 45 | . 28 . 4 . 7 . 6 Successful 26 | . 11 . 4 . 7 . 4 Failed 18 | . 16 . . . . . 2 Catastrophic 1 | . 1 . . . . . . Database Lockouts 1 | . 1 . . . . . . Manual 20 | . 16 . . . . . 4 Terminals 29 | . 23 . . . . . 6 Fabricators . | . . . . . . . . Repair Stations 5 | . 5 . . . . . . Recycling Units . | . . . . . . . . Scanalyzers 6 | . . . . . 6 . . Garrison Access 1 | . . . . . 1 . . Terminal Hacks 13 | . 7 . 4 . . . 2 Record 4 | . . . 4 . . . . Robot Analysis 3 | . 3 . . . . . . Prototype ID Bank 3 | . 2 . . . . . 1 Terminal Index 1 | . 1 . . . . . . Alert Level 1 | . 1 . . . . . . Zone Layout 1 | . . . . . . . 1 Fabricator Hacks . | . . . . . . . . Repair Station Hacks 3 | . 3 . . . . . . Scan Component 2 | . 2 . . . . . . Repair 1 | . 1 . . . . . . Recycling Unit Hacks . | . . . . . . . . Scanalyzer 6 | . . . . . 6 . . Insert Component 2 | . . . . . 2 . . Analyze 4 | . . . . . 4 . . Garrison Access Hacks 1 | . . . . . 1 . . Unlock Access 1 | . . . . . 1 . . Unauthorized Hacks 3 | . 1 . . . . . 2 Terminals 3 | . 1 . . . . . 2 Botnet 1 | . . . . . . . 1 Operators 2 | . 1 . . . . . 1 Fabricators . | . . . . . . . . Repair Stations . | . . . . . . . . Recycling Units . | . . . . . . . . Scanalyzers . | . . . . . . . . Garrison Access . | . . . . . . . . Data Cores Recovered . | . . . . . . . . Used . | . . . . . . . . Hacking Detections 10 | . 8 . . . 1 . 1 Full Trace Events 4 | . 3 . . . 1 . . Feedback Events . | . . . . . . . . Feedback Blocked . | . . . . . . . . Robot Schematics Acquired . | . . . . . . . . Robots Built . | . . . . . . . . Authchips . | . . . . . . . . Time . | . . . . . . . . Total Robot Build Rating . | . . . . . . . . Part Schematics Acquired 2 | . . . . . 2 . . Parts Built . | . . . . . . . . Authchips . | . . . . . . . . Time . | . . . . . . . . Total Part Build Rating . | . . . . . . . . Parts Repaired 1 | . 1 . . . . . . Time 36 | . 36 . . . . . . Parts Recycled . | . . . . . . . . Recycled Matter . | . . . . . . . . Retrieved Matter . | . . . . . . . . Retrieved Components . | . . . . . . . . Parts Scanalyzed 2 | . . . . . 2 . . Part Schematics Acquired 2 | . . . . . 2 . . Parts Damaged . | . . . . . . . . Bothacking | -11 -10 -10 -10 -9 -8 -8 -8 ------------ Run | Scr Mat Min Exi Min Mat Gar Mat Used RIF Installer 1 | . . . . . . 1 . Robots Hacked . | . . . . . . . . Non-combat . | . . . . . . . . Combat . | . . . . . . . . Robot Hacks Applied . | . . . . . . . . Relay Couplers Released 15 | . . . . . . 15 . Machine Destruction 15 | . . . . . . 15 . Attached 1 | . . . . . . . 1 Fabnet Peak Effective % . | . . . . . . . . Robots Rewired . | . . . . . . . . Allies Hacked . | . . . . . . . . Hacks Repelled . | . . . . . . . . Allies | -11 -10 -10 -10 -9 -8 -8 -8 -------- Run | Scr Mat Min Exi Min Mat Gar Mat Total Allies 4 | . . 3 . 1 . . . Largest Group 3 | . . 3 3 2 . . . Highest-Rated Group 40 | . . 40 40 32 . . . Highest-Rated Ally 31 | . . 16 16 31 . . . Total Orders . | . . . . . . . . Ally Attacks 14 | . . . . 14 . . . Total Damage 185 | . . . . 185 . . . Kills 2 | . . . . 2 . . . Allies Corrupted 1 | . . . . 1 . . . Allies Melted . | . . . . . . . . Intel | -11 -10 -10 -10 -9 -8 -8 -8 ------- Run | Scr Mat Min Exi Min Mat Gar Mat Robot Analysis Total 3 | . 3 . . . . . . Derelict Logs Recovered 3 | . . 1 . 2 . . . Drone Launches . | . . . . . . . . Drone Recoveries . | . . . . . . . . Exploration | -11 -10 -10 -10 -9 -8 -8 -8 ------------- Run | Scr Mat Min Exi Min Mat Gar Mat Turns Passed 5911 | 67 1164 232 544 597 1040 1995 272 Spaces Moved 2371 | 37 601 141 341 344 296 547 64 Core 8 | 2 . . . . . 6 . Treads 1702 | 35 601 141 341 344 61 149 30 Legs . | . . . . . . . . Wheels 661 | . . . . . 235 392 34 Hover . | . . . . . . . . Flight . | . . . . . . . . Fastest Speed 50 | 50 160 160 160 160 160 195 230 Average Speed 208 | 154 160 160 160 160 215 314 384 Slowest Speed 1700 | 160 160 160 160 160 320 1700 560 Overloaded Moves . | . . . . . . . . Propulsion Burnouts . | . . . . . . . . Robots Hopped . | . . . . . . . . Cave-ins Triggered . | . . . . . . . . Exploration Rate (%) 49 | 3 92 38 75 71 26 83 10 Regions Visited 7 Branch Regions 3 Pre-discovered Areas 2 | . . . 1 1 . . . Known Exits Taken 1 | . . . . . 1 . . Unknown Exits Taken 5 | 1 1 1 1 1 . . . Scrap Searched . | . . . . . . . . Spaces Dug . | . . . . . . . . Terrain Destroyed 55 | . . . . 33 11 11 . Melee . | . . . . . . . . Projectile 3 | . . . . . 2 1 . AOE 52 | . . . . 33 9 10 . Terrain Rammed . | . . . . . . . . Walls Destroyed . | . . . . . . . . Machines Disabled . | . . . . . . . . Actions | -11 -10 -10 -10 -9 -8 -8 -8 --------- Run | Scr Mat Min Exi Min Mat Gar Mat Total 2893 | 44 708 147 340 369 493 713 79 Wait 106 | . 30 . . 10 53 11 2 Move 2363 | 36 600 140 340 343 295 545 64 Hop . | . . . . . . . . Pick Up 47 | 2 13 1 . . 18 11 2 Fast Attach 34 | 6 6 . . . 8 13 1 Attach 21 | . 2 . . . 12 7 . Detach 6 | . . . . . 1 4 1 Swap 20 | . 2 2 . 1 6 8 1 Drop 16 | . 7 3 . . 1 3 2 Fire 226 | . 48 1 . 15 99 57 6 Melee . | . . . . . . . . Ram . | . . . . . . . . Kick . | . . . . . . . . Crush . | . . . . . . . . Escape Stasis 54 | . . . . . . 54 . Rewire . | . . . . . . . . Trap . | . . . . . . . . Miscellaneous . | . . . . . . . . Route ------- -11/Scrapyard -10/Materials (discovered 4 exits: [*Mat x3] / [*Min]) -10/Mines (discovered 2 exits: [*Mat] / *Exi) -10/Exiles -9/Mines -8/Materials (discovered 3 exits: [*Fac] / Sto / Gar) -8/Garrison (discovered 3 exits: *Mat x3) -8/Materials History --------- Turn | Location | Event 13 | -11/Scrapyard | Discovered new exit (range 16) 68 | -11/Scrapyard | Entered Materials 222 | -10/Materials | Discovered new exit (range 15) 301 | -10/Materials | Build established: Mutant 309 | -10/Materials | Discovered new exit (range 16) 368 | -10/Materials | Central database locked down 519 | -10/Materials | Discovered new exit (range 10) 697 | -10/Materials | Repaired Broken Lgt. Treads? 754 | -10/Materials | Discovered new exit (range 3) 1232 | -10/Materials | Entered Mines 1234 | -10/Mines | Joined a pair of Derelicts in attacking an 0b10 outpost 1336 | -10/Mines | Learned Materials terminal intel 1395 | -10/Mines | Discovered new exit (range 15) 1402 | -10/Mines | Assisted by bots powering up and referring to "LRC-V3" 1458 | -10/Mines | Deemed a non-threat by the Exiles lab entrance 1458 | -10/Mines | Discovered new exit (range 5) 1464 | -10/Mines | Entered Exiles 1464 | -10/Exiles | Accompanied by 3 allies 1503 | -10/Exiles | Met 8R-AWN 1530 | -10/Exiles | Met EX-HEX 1607 | -10/Exiles | Met EX-DEC 1646 | -10/Exiles | Visited The Gauntlet 1922 | -10/Exiles | Learned location of Zion (-6) 1992 | -10/Exiles | Discovered new exit (range 12) 2008 | -10/Exiles | Entered Mines 2008 | -9/Mines | Accompanied by 3 allies 2036 | -9/Mines | Assembled infested the area 2041 | -9/Mines | Assisted by a Guerilla fighting off Assembled 2179 | -9/Mines | Received a Mining Laser from a helpful Derelict 2239 | -9/Mines | Core integrity fell below 50% 2329 | -9/Mines | YI-UF0 nonchalantly dropped a Grenade Launcher on the ground 2590 | -9/Mines | Discovered new exit (range 10) 2605 | -9/Mines | Entered Materials 2605 | -8/Materials | Evolved 4 slots: Propulsion x1, Utility x3 2606 | -8/Materials | Identified exit to Storage 2607 | -8/Materials | Loaded intel: 12 terminal locations 2901 | -8/Materials | Lost 4 parts (1p2n1u) 2921 | -8/Materials | Build established: Scavenger-Mutant 3159 | -8/Materials | Garrison activated, responded to threat 3388 | -8/Materials | Discovered new exit (range 3) 3492 | -8/Materials | Garrison activated, responded to threat 3551 | -8/Materials | Core integrity fell below 50% 3602 | -8/Materials | Lost 5 parts (1p2n1u1w) 3638 | -8/Materials | Identified exit to Garrison 3645 | -8/Materials | Entered Garrison 3710 | -8/Garrison | Triggered checkpoint 3753 | -8/Garrison | Garrison Relay disabled 3856 | -8/Garrison | Triggered checkpoint 3964 | -8/Garrison | Triggered checkpoint 4119 | -8/Garrison | Discovered new exit (range 8) 4310 | -8/Garrison | Triggered checkpoint 4413 | -8/Garrison | Discovered new exit (range 10) 4474 | -8/Garrison | Triggered checkpoint 4513 | -8/Garrison | Garrison Relay disabled 4628 | -8/Garrison | Triggered checkpoint 4640 | -8/Garrison | Core integrity fell below 20% 4666 | -8/Garrison | Triggered checkpoint 4723 | -8/Garrison | Lost 10 parts (1p4n3u2w) 4932 | -8/Garrison | Discovered new exit (range 10) 4984 | -8/Garrison | Triggered checkpoint 5060 | -8/Garrison | Garrison Relay disabled 5612 | -8/Garrison | Installed Relay Interface Framework 5640 | -8/Garrison | Entered Materials 5912 | -8/Materials | Destroyed by H-55 Commando with Gauss Rifle Last Messages --------------- >>Trojan(Operators) Trojan loaded successfully. Testing... Operator tracking enabled and active. 05770_ K-01 Serf collects debris. 05801_ K-01 Serf destroyed. 05816_ Acquired Wheel. 05817_ Acquired 28 matter. 05830_ System corrupted: Matter fused (-8). 05839_ K-01 Serf collects debris. 05843_ Slug penetrates Wall. 05854_ Targeting Computer melted. 05854_ H-55 Commando destroyed. 05870_ K-01 Serf collects debris. 05899_ R-06 Scavenger collects Carbon-fiber Leg. 05899_ K-01 Serf collects debris. 05903_ R-06 Scavenger collects Assault Rifle. 05903_ K-01 Serf collects debris. 05909_ Acquired 43 matter. 05912_ Penetrated by Slug. Map ----- +----------------------------------------------------+ | ?????????????????????????????????????????????????? | | ?????????????????????????????????????????????????? | | ?????????????????????????????????????????????????? | | ?????????????????????????????????????????????????? | | ?????????????????????????????????????????????????? | | ?????????????????????????????????????????????????? | | ?????????????????????????????????????????????????? | | ?????????????????????????????????????????????????? | | # #????????????????????????????????????? | | ###### #????????????????????????????????????? | | # #????????????????????????????????????? | | "" # o#????????????????????????????????????? | | "" + #????????????????????????????????????? | | "" # #????????????????????????????????????? | | "" # #????????????????????????????????????? | | # #####????????????????????????????????? | | #?#### ????????????????????????????????? | | # #??# ????????????????????????????????? | | # #### ??????########??????????????????? | | # ##"" ########??????# [#??????????????????? | | ####"Y #?????????????#"" #??????????????????? | | #"" #?????????????#"Y ] ###????????????????? | | " ### #?????????????#"" h ?????????????????? | | T #?# #?????????????# [ !???????????????????? | | " #?# #?????????????# ?????????????????????? | | #?# ################@#######????????????????? | | * #?# [ #????????????????? | | #?# #????????????????? | | #?# k s #????????????????? | | ###### ####################s #????????????????? | | #??????????????????? s #????????????????? | | #???????????????????? #????????????????? | | #????????????????????? #????????????????? | | #####+#####????????????????????? ????????????????? | | # #?????????????????????? ???????????????? | | # #??????????????????????? ?????o????????? | | # #??????????????????????? ?????????????? | | # #????????????????????????#+????????????? | | # #??????????????????????????????????????? | | # #??????????????????????????????????????? | | # #??????????????????????????????????????? | | # #??????????????????????????????????????? | | ###########??????????????????????????????????????? | | ?????????????????????????????????????????????????? | | ?????????????????????????????????????????????????? | | ?????????????????????????????????????????????????? | | ?????????????????????????????????????????????????? | | | | | | | +----------------------------------------------------+ Best States ------------- Heat Dissipation 65 Energy Generation 14 Energy Capacity 465 Matter Stores 300 Matter Capacity 300 Sight Range 16 Terrain Scan Density 10 Armor Coverage 225 Evasion (%) 40 Recoil Reduction 3 Relay Coupler Types 1 Relay Coupler Value 21 Item Schematics ----------------- Imp. Sensor Array | -8/Materials | Scanalyzed Gauss Rifle | -8/Materials | Scanalyzed Robot Schematics ------------------ None Fabricated ------------ Nothing Alien Tech Used ----------------- None Achievements -------------- Short-term Sacrifices Challenges ------------ None Game ------ Seed StorageRagnarokStripper Manual? 0 Play Time 00:50:11 Cumulative 63.7 hours Start 2022.07.02 @ 15:44:12 End 2022.07.02 @ 16:37:02 Sessions 1 Manual Loads 0 Difficulty Rogue Special Mode None Game No. 34 Rogue 34 Adventurer 0 Explorer 0 Win Type - Total 2 Types 2/0/0/0/0/0/0/0/0 Lore% 49 Gallery% 49 Achievement% 41 Wizard Run 0 Options --------- ASCII 0 Keyboard 1 Movement Numpad Keybinds 0 Fullscreen 2 Font 18/X11 Map View 76x50 Tactical HUD 1 Map Filters NONE Filters NONE Steam 1 RUN: c169c550-680a-4010-a3d5-7eb52ff73060